fUST/lending_fUST_20251209
["ID","MTS","AMOUNT","RATE_DAILY","PERIOD"]
[397999241,1765269038486,-7195.09891551,6.123e-05,2]
[397999248,1765269038543,-1069.39056157,6.123e-05,2]
[397999261,1765269038667,-42099.30051969,6.123e-05,2]
[397999264,1765269038679,-8581.03043972,6.123e-05,2]
[397999455,1765269040746,-8027.33722848,6.123e-05,2]
[397999457,1765269040756,-600.0,6.346e-05,2]
[397999459,1765269040765,-250.0,6.397e-05,3]
[397999461,1765269040773,-365.090868,6.722e-05,2]
[397999774,1765269043660,-265.909132,6.722e-05,2]
[397999776,1765269043670,-1360.0,6.722e-05,2]
[397999778,1765269043680,-415.0,6.722e-05,2]
[397999780,1765269043690,-720.0,6.981e-05,2]
[397999782,1765269043699,-306.602728,6.99e-05,2]
[397999784,1765269043708,-160.0,7e-05,2]
[397999786,1765269043717,-160.0,7e-05,2]
[397999788,1765269043726,-160.0,7e-05,2]
[397999790,1765269043736,-158.0,7e-05,2]
[397999792,1765269043745,-160.0,7e-05,2]
[397999794,1765269043754,-1544.84231953,7.058e-05,2]
[398000051,1765269046486,-12.20109434,7.058e-05,2]
[398000053,1765269046496,-1153.36350566,7.075e-05,2]
[398002699,1765269194365,10000.01,6.023e-05,2]
[398002700,1765269194395,10000.01,6.023e-05,2]
[398002701,1765269194423,10000.01,6.023e-05,2]
[398002702,1765269194451,10000.01,6.023e-05,2]
[398002703,1765269194478,10000.01,6.023e-05,2]
[398002704,1765269194504,10000.01,6.023e-05,2]
[398002705,1765269194532,10000.01,6.023e-05,2]
[398002706,1765269194557,10000.01,6.023e-05,2]
[398002707,1765269194582,10000.01,6.023e-05,2]
[398002708,1765269194607,10000.01,6.023e-05,2]
[398002709,1765269194632,10000.01,6.023e-05,2]
[398002710,1765269194657,10000.01,6.023e-05,2]
[398002711,1765269194680,10000.01,6.023e-05,2]
[398002712,1765269194705,10000.01,6.023e-05,2]
[398002713,1765269194729,10000.01,6.023e-05,2]
[398002714,1765269242622,300.0,6.022e-05,2]
[398002715,1765269273269,500.0,6.022e-05,2]
[398002716,1765269273300,500.0,6.022e-05,2]
[398002717,1765269273345,500.0,6.022e-05,2]
[398002718,1765269273379,500.0,6.022e-05,2]
[398002719,1765269273422,500.0,6.022e-05,2]
[398002720,1765269273479,500.0,6.022e-05,2]
[398002721,1765269273511,500.0,6.022e-05,2]
[398002722,1765269273545,310.8473685,6.022e-05,2]
[398002723,1765269273592,216.21674864,6.022e-05,2]
[398002724,1765269273630,500.0,6.022e-05,2]
[398002725,1765269273677,500.0,6.022e-05,2]
[398002726,1765269273712,500.0,6.022e-05,2]
[398002727,1765269273754,500.0,6.022e-05,2]
[398002728,1765269273786,500.0,6.022e-05,2]
[398002729,1765269273818,500.0,6.022e-05,2]
[398002730,1765269273861,500.0,6.022e-05,2]
[398002731,1765269273890,500.0,6.022e-05,2]
[398002732,1765269273919,500.0,6.022e-05,2]
[398002733,1765269273967,500.0,6.022e-05,2]
[398002734,1765269274016,279.50998066,6.022e-05,2]
[398002735,1765269274045,393.4359022,6.022e-05,2]
[398002736,1765269274065,106.5640978,6.022e-05,2]
[398002737,1765269274112,500.0,6.022e-05,2]
[398002738,1765269274165,500.0,6.022e-05,2]
[398002739,1765269274219,500.0,6.022e-05,2]
[398002740,1765269274276,500.0,6.022e-05,2]
[398002741,1765269274319,500.0,6.022e-05,2]
[398002742,1765269274365,500.0,6.022e-05,2]
[398002743,1765269274402,500.0,6.022e-05,2]
[398002744,1765269274431,500.0,6.022e-05,2]
[398002745,1765269274476,610.50893125,6.022e-05,2]
[398002746,1765269274524,500.0,6.022e-05,2]
[398002747,1765269274576,500.0,6.022e-05,2]
[398002748,1765269274625,500.0,6.022e-05,2]
[398002749,1765269274666,500.0,6.022e-05,2]
[398002750,1765269274725,500.0,6.022e-05,2]
[398002751,1765269274771,500.0,6.022e-05,2]
[398002752,1765269274831,500.0,6.022e-05,2]
[398002753,1765269274865,500.0,6.022e-05,2]
[398002754,1765269274902,500.0,6.022e-05,2]
[398002755,1765269274940,500.0,6.022e-05,2]
[398002756,1765269274996,282.93697095,6.022e-05,2]
[398002757,1765269275019,217.06302905,6.022e-05,2]
[398002758,1765269275060,500.0,6.022e-05,2]
[398002759,1765269275114,500.0,6.022e-05,2]
[398002760,1765269275156,500.0,6.022e-05,2]
[398002761,1765269275219,500.0,6.022e-05,2]
[398002762,1765269275261,500.0,6.022e-05,2]
[398002763,1765269275303,500.0,6.022e-05,2]
[398002764,1765269275351,500.0,6.022e-05,2]
[398002765,1765269275406,500.0,6.022e-05,2]
[398002766,1765269275445,500.0,6.022e-05,2]
[398002767,1765269275491,500.0,6.022e-05,2]
[398002768,1765269275542,500.0,6.022e-05,2]
[398002769,1765269275588,500.0,6.022e-05,2]
[398002770,1765269275636,500.0,6.022e-05,2]
[398002771,1765269291097,499.99999999,6.022e-05,2]
[398002772,1765269291129,500.0,6.022e-05,2]
[398002773,1765269291164,500.0,6.022e-05,2]
[398002774,1765269291203,500.0,6.022e-05,2]
[398002775,1765269291248,235.93203711,6.022e-05,2]
[398002776,1765269291284,500.0,6.022e-05,2]
[398002777,1765269291329,500.0,6.022e-05,2]
[398002778,1765269291364,47.01493385,6.022e-05,2]
[398002779,1765269291388,452.98506615,6.022e-05,2]
[398002780,1765269291429,500.0,6.022e-05,2]
[398002781,1765269291459,500.0,6.022e-05,2]
[398002782,1765269291498,500.0,6.022e-05,2]
[398002783,1765269291537,500.0,6.022e-05,2]
[398002784,1765269291574,500.0,6.022e-05,2]
[398002785,1765269291612,500.0,6.022e-05,2]
[398002786,1765269291649,500.0,6.022e-05,2]
[398002787,1765269291693,500.0,6.022e-05,2]
[398002788,1765269291729,606.33601688,6.022e-05,2]
[398002789,1765269291761,500.0,6.022e-05,2]
[398002790,1765269291795,500.0,6.022e-05,2]
[398002791,1765269291824,500.0,6.022e-05,2]
[398002792,1765269291869,500.0,6.022e-05,2]
[398002793,1765269291910,500.0,6.022e-05,2]
[398002794,1765269291941,500.0,6.022e-05,2]
[398002795,1765269291975,500.0,6.022e-05,2]
[398002796,1765269292112,500.0,6.022e-05,2]
[398002797,1765269292434,500.0,6.022e-05,2]
[398002798,1765269292733,440.68891697,6.022e-05,2]
[398002799,1765269292758,59.31108303,6.022e-05,2]
[398002800,1765269293091,500.0,6.022e-05,2]
[398002801,1765269298680,500.0,6.022e-05,2]
[398002802,1765269299744,500.0,6.022e-05,2]
[398002803,1765269300422,500.0,6.022e-05,2]
[398002804,1765269300548,500.0,6.022e-05,2]
[398002805,1765269300587,500.0,6.022e-05,2]
[398002806,1765269300625,500.0,6.022e-05,2]
[398002807,1765269300660,500.0,6.022e-05,2]
[398002808,1765269300698,500.0,6.022e-05,2]
[398002809,1765269300728,500.0,6.022e-05,2]
[398002810,1765269300758,500.0,6.022e-05,2]
[398002811,1765269300802,500.0,6.022e-05,2]
[398002812,1765269300843,500.0,6.022e-05,2]
[398002813,1765269300872,500.0,6.022e-05,2]
[398002814,1765269300907,500.0,6.022e-05,2]
[398002815,1765269300940,500.0,6.022e-05,2]
[398002816,1765269300979,500.0,6.022e-05,2]
[398002817,1765269301009,500.0,6.022e-05,2]
[398002818,1765269301040,500.0,6.022e-05,2]
[398002819,1765269301082,440.69891697,6.022e-05,2]
[398002820,1765269301104,59.30108303,6.022e-05,2]
[398002821,1765269301155,500.0,6.022e-05,2]
[398002822,1765269301184,500.0,6.022e-05,2]
[398002823,1765269301222,500.0,6.022e-05,2]
[398002824,1765269301258,500.0,6.022e-05,2]
[398002825,1765269301289,500.0,6.022e-05,2]
[398002826,1765269302230,300.0,6.022e-05,2]
[398002827,1765269362792,300.0,6.022e-05,2]
[398002828,1765269388408,-267.30416587,6.023e-05,2]
[398002829,1765269390933,-234.38064113,6.023e-05,2]
[398002830,1765269392541,-151.35407933,6.023e-05,2]
[398002831,1765269397666,-206.07956661,6.023e-05,2]
[398002832,1765269399935,-432.49917161,6.023e-05,2]
[398002833,1765269401727,-413.49271773,6.023e-05,2]
[398002834,1765269404382,-169.63592332,6.023e-05,2]
[398002835,1765269407706,-373.65647307,6.023e-05,2]
[398002836,1765269410049,-299.93263803,6.023e-05,2]
[398002837,1765269413040,-300.0,6.023e-05,2]
[398002838,1765269416353,-220.93230947,6.023e-05,2]
[398002839,1765269416959,357.35741652,6.022e-05,2]
[398002840,1765269418311,500.0,6.022e-05,2]
[398002841,1765269418358,500.0,6.022e-05,2]
[398002842,1765269418430,320.64955528,6.022e-05,2]
[398002843,1765269422408,300.0,6.022e-05,2]
[398002844,1765269426136,-219.34304411,6.023e-05,2]
[398002845,1765269429559,-151.99883395,6.023e-05,2]
[398002846,1765269431714,-151.06190433,6.023e-05,2]
[398002847,1765269439834,-353.75255448,6.023e-05,2]
[398002855,1765269446346,-176.24101114,6.023e-05,2]
[398002856,1765269449255,-296.72483496,6.023e-05,2]
[398002857,1765269452994,-214.25074878,6.023e-05,2]
[398002858,1765269454901,-331.07613419,6.023e-05,2]
[398002859,1765269456538,-179.64573251,6.023e-05,2]
[398002860,1765269460976,-256.37505392,6.023e-05,2]
[398002861,1765269462871,-251.55573411,6.023e-05,2]
[398002862,1765269470158,-171.33067736,6.023e-05,2]
[398002863,1765269472655,-378.12062154,6.023e-05,2]
[398002864,1765269477012,-209.39011964,6.023e-05,2]
[398002865,1765269479658,1200.0,6.022e-05,2]
[398002866,1765269479707,-393.09103063,6.023e-05,2]
[398002867,1765269482463,300.0,6.022e-05,2]
[398002868,1765269484714,-152.72,6.023e-05,2]
[398002869,1765269486454,-310.37177522,6.023e-05,2]
[398002870,1765269488712,-306.92937409,6.023e-05,2]
[398002871,1765269494240,-171.33067736,6.023e-05,2]
[398002872,1765269495821,-273.96310253,6.023e-05,2]
[398002873,1765269497463,-327.99723702,6.023e-05,2]
[398002874,1765269501998,-153.11672565,6.023e-05,2]
[398002875,1765269505238,-346.88327435,6.023e-05,2]
[398002876,1765269507160,-283.00252879,6.023e-05,2]
[398002877,1765269509436,-151.08,6.023e-05,2]
[398002878,1765269511030,-234.10469499,6.023e-05,2]
[398002879,1765269517764,-184.05824193,6.023e-05,2]
[398002880,1765269519662,-154.69700748,6.023e-05,2]
[398002881,1765269522794,-299.44261729,6.023e-05,2]
[398002882,1765269524443,-213.89822453,6.023e-05,2]
[398002883,1765269526096,-243.85553354,6.023e-05,2]
[398002884,1765269528892,-185.97267426,6.023e-05,2]
[398002885,1765269532753,-184.26,6.023e-05,2]
[398002886,1765269535428,-160.33203176,6.023e-05,2]
[398002887,1765269542425,228.0,6.022e-05,2]
[398002888,1765269543592,-328.66932264,6.023e-05,2]
[398002889,1765269604436,506.0,6.023e-05,2]
[398002890,1765269779574,232.0,6.022e-05,2]
[398003256,1765269952121,-951.33432433,6.023e-05,2]
[398003308,1765270204512,506.0,6.023e-05,2]
[398003309,1765270207284,1890.70194517,5.923e-05,2]
[398003310,1765270207313,10000.01,5.923e-05,2]
[398003311,1765270207340,10000.01,5.923e-05,2]
[398003312,1765270207369,10000.01,5.923e-05,2]
[398003313,1765270207401,10000.01,5.923e-05,2]
[398003314,1765270207427,10000.01,5.923e-05,2]
[398003315,1765270207454,10000.01,5.923e-05,2]
[398003316,1765270207482,10000.01,5.923e-05,2]
[398003317,1765270207512,10000.01,5.923e-05,2]
[398003318,1765270207540,10000.01,5.923e-05,2]
[398003319,1765270207568,10000.01,5.923e-05,2]
[398003320,1765270207595,10000.01,5.923e-05,2]
[398003321,1765270207623,10000.01,5.923e-05,2]
[398003322,1765270207651,6148.27594219,5.923e-05,2]
[398003323,1765270223491,-277.30229746,6.07e-05,2]
[398003324,1765270228455,500.0,6.022e-05,2]
[398003325,1765270228486,515.63984835,6.022e-05,2]
[398003326,1765270228526,500.0,6.022e-05,2]
[398003327,1765270228570,500.0,6.022e-05,2]
[398003328,1765270228613,500.0,6.022e-05,2]
[398003329,1765270228643,500.0,6.022e-05,2]
[398003330,1765270228678,500.0,6.022e-05,2]
[398003331,1765270228939,500.0,6.022e-05,2]
[398003332,1765270229074,500.0,6.022e-05,2]
[398003344,1765270232870,-250.0,6.396e-05,3]
[398003345,1765270232878,-251.7934699,6.592e-05,2]
[398003346,1765270232908,-134.04699384,6.592e-05,2]
[398003347,1765270232917,-306.95300616,6.592e-05,2]
[398003367,1765270238573,-1488.55634478,6.592e-05,2]
[398003374,1765270238633,-783.66849889,6.592e-05,2]
[398003376,1765270238644,-114.70363912,6.777e-05,2]
[398003381,1765270238681,-1590.20771841,6.777e-05,2]
[398003473,1765270241153,-3e-08,6.777e-05,2]
[398003474,1765270243649,-451.08864244,6.777e-05,2]
[398003476,1765270243885,-631.0,6.777e-05,2]
[398003477,1765270243900,-230.91135756,6.777e-05,2]
[398003488,1765270246532,-685.87214109,6.777e-05,2]
[398003489,1765270378412,10000.01,5.923e-05,2]
[398003490,1765270378437,10000.01,5.923e-05,2]
[398003491,1765270378462,10000.01,5.923e-05,2]
[398003492,1765270378485,10000.01,5.923e-05,2]
[398003493,1765270378509,10000.01,5.923e-05,2]
[398003494,1765270378532,10000.01,5.923e-05,2]
[398003495,1765270378555,10000.01,5.923e-05,2]
[398003496,1765270378579,10000.01,5.923e-05,2]
[398003497,1765270378605,10000.01,5.923e-05,2]
[398003498,1765270378630,10000.01,5.923e-05,2]
[398003499,1765270380351,-1200.0,5.922e-05,2]
[398003500,1765270383427,-300.0,5.922e-05,2]
[398003501,1765270384783,-5806.03181293,5.923e-05,2]
[398003502,1765270386495,-10000.01,5.923e-05,2]
[398003503,1765270386622,-10000.01,5.923e-05,2]
[398003504,1765270386748,-10000.01,5.923e-05,2]
[398003505,1765270386891,-10000.01,5.923e-05,2]
[398003506,1765270386990,-10000.01,5.923e-05,2]
[398003507,1765270387228,-10000.01,5.923e-05,2]
[398003508,1765270387367,-10000.01,5.923e-05,2]
[398003509,1765270387539,-10000.01,5.923e-05,2]
[398003510,1765270387678,-10000.01,5.923e-05,2]
[398003511,1765270387788,-10000.01,5.923e-05,2]
[398003512,1765270390434,-1284.79787155,5.923e-05,2]
[398003513,1765270393171,-368.96941892,5.923e-05,2]
[398003514,1765270397707,-189.66796824,5.923e-05,2]
[398003516,1765270399919,-168.39453874,5.923e-05,2]
[398003517,1765270402417,-326.64030813,5.923e-05,2]
[398003518,1765270404572,-241.34626634,5.923e-05,2]
[398003519,1765270406721,-330.85865016,5.923e-05,2]
[398003520,1765270413162,-264.46573326,5.923e-05,2]
[398003521,1765270414823,-212.70034002,5.923e-05,2]
[398003522,1765270417050,-364.36639284,5.923e-05,2]
[398003523,1765270421586,-238.37703034,5.923e-05,2]
[398003524,1765270424313,-204.29992213,5.923e-05,2]
[398003525,1765270427205,-285.62627834,5.923e-05,2]
[398003526,1765270429336,-235.93203711,5.923e-05,2]
[398003527,1765270431400,-215.22290777,5.923e-05,2]
[398003528,1765270438002,-328.25952993,5.923e-05,2]
[398003529,1765270439714,-247.96782124,5.923e-05,2]
[398003530,1765270441286,-165.72456091,5.923e-05,2]
[398003531,1765270443071,300.0,5.922e-05,2]
[398003532,1765270443210,300.0,5.922e-05,2]
[398003533,1765270445138,-252.03217876,5.923e-05,2]
[398003534,1765270447741,-329.1040965,5.923e-05,2]
[398003535,1765270449787,-309.33909961,5.923e-05,2]
[398003536,1765270455755,-309.91290048,5.923e-05,2]
[398003537,1765270457752,-170.93,5.923e-05,2]
[398003538,1765270460950,-553.15850894,5.923e-05,2]
[398003539,1765270462550,-394.66991705,5.923e-05,2]
[398003540,1765270464752,-231.14574503,5.923e-05,2]
[398003541,1765270470113,-270.88781243,5.923e-05,2]
[398003542,1765270474483,501.73776093,5.922e-05,2]
[398003543,1765270474520,500.0,5.922e-05,2]
[398003544,1765270474630,500.0,5.922e-05,2]
[398003545,1765270474690,500.0,5.922e-05,2]
[398003546,1765270474767,500.0,5.922e-05,2]
[398003547,1765270474850,500.0,5.922e-05,2]
[398003548,1765270474924,651.5667791,5.922e-05,2]
[398003549,1765270490844,389.08231841,5.922e-05,2]
[398003550,1765270501333,300.0,5.922e-05,2]
[398003551,1765270501966,262.0,5.922e-05,2]
[398003552,1765270502171,1200.0,5.922e-05,2]
[398003553,1765270502538,300.0,5.922e-05,2]
[398003554,1765270503225,300.0,5.922e-05,2]
[398003555,1765270562455,300.0,5.922e-05,2]
[398003556,1765270619252,-155.67299573,5.923e-05,2]
[398003557,1765270621432,-274.75222852,5.923e-05,2]
[398003558,1765270623281,-426.47833192,5.923e-05,2]
[398003559,1765270633667,-206.24418184,5.923e-05,2]
[398003560,1765270637872,-275.72310828,5.923e-05,2]
[398003561,1765270640533,-246.82715909,5.923e-05,2]
[398003562,1765270643863,-198.24238437,5.923e-05,2]
[398003563,1765270645904,-329.40878419,5.923e-05,2]
[398003564,1765270682342,300.0,5.922e-05,2]
[398003565,1765270801653,300.0,5.922e-05,2]
[398003566,1765270804955,505.0,5.923e-05,2]
[398003567,1765270963903,-177.39819085,5.923e-05,2]
[398003568,1765270966049,-175.6907337,5.923e-05,2]
[398003569,1765270968647,-388.1672447,5.923e-05,2]
[398003570,1765270972419,-471.82151088,5.923e-05,2]
[398003571,1765270976259,-174.46935936,5.923e-05,2]
[398003572,1765270983156,-382.04868251,5.923e-05,2]
[398003582,1765271155274,-150.0,0.00012319,13]
[398003583,1765271173912,1000.0,0.00019,120]
[398003585,1765271282331,300.0,5.922e-05,2]
[398003586,1765271375278,1290.62314156,5.823e-05,2]
[398003587,1765271375303,10000.01,5.823e-05,2]
[398003588,1765271375330,10000.01,5.823e-05,2]
[398003589,1765271375356,10000.01,5.823e-05,2]
[398003590,1765271375384,10000.01,5.823e-05,2]
[398003591,1765271375410,10000.01,5.823e-05,2]
[398003592,1765271404208,504.0,5.823e-05,2]
[398003593,1765271419159,-546.70936922,5.823e-05,2]
[398003594,1765271422061,-151.0,5.823e-05,2]
[398003595,1765271423819,-535.78890942,5.823e-05,2]
[398003596,1765271429270,-157.80546858,5.823e-05,2]
[398003622,1765271431697,-508.18018195,5.823e-05,2]
[398003627,1765271432621,-186.78206719,5.823e-05,2]
[398003628,1765271435199,150.0,0.00019,120]
[398003629,1765271437527,-220.46077197,5.823e-05,2]
[398003635,1765271437902,520.93835721,5.822e-05,2]
[398003636,1765271437942,174.6081041,5.822e-05,2]
[398003637,1765271437973,500.0,5.822e-05,2]
[398003638,1765271438008,500.0,5.822e-05,2]
[398003639,1765271438056,500.0,5.822e-05,2]
[398003640,1765271438109,500.0,5.822e-05,2]
[398003641,1765271438156,500.0,5.822e-05,2]
[398003642,1765271438195,500.0,5.822e-05,2]
[398003643,1765271438219,-24364.75654405,5.823e-05,2]
[398003644,1765271438237,-101186.11831083,5.823e-05,2]
[398003645,1765271438287,500.0,5.822e-05,2]
[398003646,1765271438324,500.0,5.822e-05,2]
[398003647,1765271438365,181.89579932,5.822e-05,2]
[398003648,1765271438385,-2044.97081546,5.823e-05,2]
[398003649,1765271438438,500.0,5.822e-05,2]
[398003650,1765271438471,428.44920838,5.822e-05,2]
[398003651,1765271438599,186.0151283,5.822e-05,2]
[398003652,1765271439097,-166.21,5.823e-05,2]
[398003663,1765271441748,-214.28126907,5.823e-05,2]
[398003708,1765271443046,-38740.82772315,5.823e-05,2]
[398003710,1765271443056,-500.0,5.923e-05,2]
[398003712,1765271443065,-485.26084037,5.923e-05,2]
[398003714,1765271443074,-284.5660657,5.965e-05,2]
[398003716,1765271443083,-189.9767698,6.089e-05,2]
[398003718,1765271443093,-250.0,6.395e-05,3]
[398003720,1765271443102,-2579.17784983,6.438e-05,2]
[398003722,1765271443111,-1401.51033013,6.698e-05,2]
[398003724,1765271443120,-631.0,6.747e-05,2]
[398003726,1765271443131,-2156.0,6.747e-05,2]
[398003728,1765271443140,-1436.816,6.747e-05,2]
[398003730,1765271443150,-250.0,6.776e-05,2]
[398003733,1765271443160,-1401.51033013,6.858e-05,2]
[398003734,1765271443170,-3660.12677692,6.904e-05,2]
[398003737,1765271443180,-2302.91270611,6.916e-05,2]
[398003739,1765271443190,-2674.60743027,6.986e-05,2]
[398003740,1765271443199,-1401.51033013,7.018e-05,2]
[398003743,1765271443210,-712.90380355,7.082e-05,2]
[398003745,1765271443219,-77794.21931741,7.1e-05,2]
[398003765,1765271443410,-560.0,7.1e-05,2]
[398004010,1765271445783,-1700.98547173,7.1e-05,2]
[398004012,1765271445793,-347.30356795,7.109e-05,2]
[398004015,1765271445803,-473.73864541,7.123e-05,2]
[398004017,1765271445814,-500.0,7.123e-05,2]
[398004019,1765271445824,-758.05,7.123e-05,2]
[398004021,1765271445833,-321.20186311,7.123e-05,2]
[398004598,1765271468359,309.2528123,6.283e-05,2]
[398004599,1765271548315,10000.01,5.823e-05,2]
[398004600,1765271548341,10000.01,5.823e-05,2]
[398004601,1765271548367,10000.01,5.823e-05,2]
[398004602,1765271548393,10000.01,5.823e-05,2]
[398004603,1765271549765,-278.43984847,5.823e-05,2]
[398004604,1765271552575,-356.83823712,5.823e-05,2]
[398004605,1765271557991,-3194.85059039,5.823e-05,2]
[398004606,1765271558120,-10000.01,5.823e-05,2]
[398004607,1765271558287,-10000.01,5.823e-05,2]
[398004608,1765271559532,-233.72115755,5.823e-05,2]
[398004609,1765271561145,-10000.01,5.823e-05,2]
[398004610,1765271564229,-283.52142929,5.823e-05,2]
[398004611,1765271565713,-231.27292231,5.823e-05,2]
[398004612,1765271569320,-430.07419803,5.823e-05,2]
[398004613,1765271571996,-249.4444737,5.823e-05,2]
[398004614,1765271573592,-151.21737776,5.823e-05,2]
[398004615,1765271576372,-165.0719411,5.823e-05,2]
[398004616,1765271580172,-269.7846612,5.823e-05,2]
[398004617,1765271582591,300.0,5.822e-05,2]
[398004618,1765271583003,-216.31613339,5.823e-05,2]
[398004619,1765271584976,-211.0908018,5.823e-05,2]
[398004620,1765271588647,-206.86885331,5.823e-05,2]
[398004621,1765271590156,-219.16497994,5.823e-05,2]
[398004622,1765271592336,-348.73128974,5.823e-05,2]
[398004623,1765271595686,-184.97312584,5.823e-05,2]
[398004624,1765271642644,300.0,5.822e-05,2]
[398004627,1765271682424,206.892366,5.723e-05,2]
[398004628,1765271701336,300.0,5.822e-05,2]
[398004629,1765271702655,300.0,5.822e-05,2]
[398004630,1765271703319,1200.0,5.822e-05,2]
[398004631,1765271704836,300.0,5.822e-05,2]
[398004633,1765271762904,300.0,5.822e-05,2]
[398004634,1765271822541,300.0,5.822e-05,2]
[398004635,1765271826240,-207.22561882,5.823e-05,2]
[398004636,1765271829242,-242.3284504,5.823e-05,2]
[398004637,1765271831389,-299.04502074,5.823e-05,2]
[398004638,1765271834665,-287.86783038,5.823e-05,2]
[398004639,1765271837537,-286.49077375,5.823e-05,2]
[398004640,1765271840868,-308.83111444,5.823e-05,2]
[398004641,1765271844125,-257.62322985,5.823e-05,2]
[398004642,1765271845713,-161.57926918,5.823e-05,2]
[398004643,1765271852585,-189.90532999,5.823e-05,2]
[398004644,1765271853652,206.892366,5.723e-05,2]
[398004645,1765271854581,-371.06659024,5.823e-05,2]
[398004646,1765271856066,-194.61801414,5.823e-05,2]
[398004647,1765271862066,-500.0,5.823e-05,2]
[398004648,1765271864156,-205.85596972,5.823e-05,2]
[398004649,1765271868345,-167.31219132,5.823e-05,2]
[398004650,1765271870483,-255.07335924,5.823e-05,2]
[398004651,1765271872060,-214.86638172,5.823e-05,2]
[398004652,1765271876884,-255.9396853,5.823e-05,2]
[398004653,1765271879224,-201.71712585,5.823e-05,2]
[398004654,1765271880220,1200.0,5.822e-05,2]
[398004655,1765271883391,300.0,5.822e-05,2]
[398004656,1765271885282,-203.36951046,5.823e-05,2]
[398004657,1765271887373,-316.14918261,5.823e-05,2]
[398004658,1765271890142,-176.32020411,5.823e-05,2]
[398004659,1765271893228,-513.76655817,5.823e-05,2]
[398004660,1765271896493,-236.71399754,5.823e-05,2]
[398004661,1765271898669,-204.81024841,5.823e-05,2]
[398004662,1765271900345,-154.09575476,5.823e-05,2]
[398004663,1765271904245,-192.83436738,5.823e-05,2]
[398004664,1765271908373,-294.37669357,5.823e-05,2]
[398004665,1765271911130,-173.35100915,5.823e-05,2]
[398004666,1765271917570,-189.99216055,5.823e-05,2]
[398004667,1765271919595,-292.39362416,5.823e-05,2]
[398004668,1765271924200,-384.16943563,5.823e-05,2]
[398004669,1765271926265,-350.72220317,5.823e-05,2]
[398004670,1765271929081,-196.80918333,5.823e-05,2]
[398004671,1765271931924,-378.49379308,5.823e-05,2]
[398004672,1765271933588,-202.34422436,5.823e-05,2]
[398004673,1765271936167,-168.89779705,5.823e-05,2]
[398004674,1765271938899,-277.91015139,5.823e-05,2]
[398004675,1765271940527,-319.64084889,5.823e-05,2]
[398004676,1765271942624,300.0,5.822e-05,2]
[398004677,1765271943576,-170.90701744,5.823e-05,2]
[398004678,1765271949235,-154.40968752,5.823e-05,2]
[398004679,1765271951119,-164.96790987,5.823e-05,2]
[398004680,1765272002204,300.0,5.822e-05,2]
[398004681,1765272002853,300.0,5.822e-05,2]
[398004682,1765272003063,1200.0,5.822e-05,2]
[398004683,1765272004994,300.0,5.822e-05,2]
[398004684,1765272062660,300.0,5.822e-05,2]
[398004685,1765272122486,300.0,5.822e-05,2]
[398004687,1765272170174,-186.32030897,5.823e-05,2]
[398004688,1765272172882,-279.69732835,5.823e-05,2]
[398004689,1765272175198,-500.0,5.823e-05,2]
[398004690,1765272180087,1200.0,5.822e-05,2]
[398004691,1765272180757,-433.23404987,5.823e-05,2]
[398004692,1765272182321,300.0,5.822e-05,2]
[398004693,1765272184526,-238.54535141,5.823e-05,2]
[398004694,1765272189658,-157.90039857,5.823e-05,2]
[398004695,1765272191069,-280.98237022,5.823e-05,2]
[398004696,1765272196572,-155.76528857,5.823e-05,2]
[398004697,1765272198255,-444.17823799,5.823e-05,2]
[398004698,1765272201493,-345.41887085,5.823e-05,2]
[398004699,1765272204275,-204.24019785,5.823e-05,2]
[398004700,1765272205841,-248.75728919,5.823e-05,2]
[398004701,1765272207999,-179.2736605,5.823e-05,2]
[398004702,1765272212827,-204.6337886,5.823e-05,2]
[398004703,1765272214865,-282.46151456,5.823e-05,2]
[398004704,1765272217267,-266.67439883,5.823e-05,2]
[398004705,1765272219471,-280.47319586,5.823e-05,2]
[398004707,1765272223327,-285.11274756,5.823e-05,2]
[398004708,1765272229060,-445.57154497,5.823e-05,2]
[398004709,1765272230706,-179.34100537,5.823e-05,2]
[398004710,1765272232151,-217.53848544,5.823e-05,2]
[398004711,1765272236909,-241.23703564,5.823e-05,2]